bitfinex-derivatives/quotes_BTCF0:USTF0_20240829
["timestamp","ask_amount","ask_price","bid_price","bid_amount"]
[1724935010886,0.5841,60287.0,60280.0,0.082925]
[1724935011175,0.3608,60281.0,60267.0,0.082943]
[1724935011377,0.3608,60281.0,60277.0,0.082928]
[1724935011582,0.3608,60281.0,60278.0,0.082927]
[1724935011780,0.082933,60274.0,60273.0,0.00024874]
[1724935011980,0.443733,60274.0,60273.0,0.00024874]
[1724935012278,1.541453,60274.0,60273.0,0.00024874]
[1724935013277,1.45852,60274.0,60266.0,0.082943]
[1724935013589,0.3608,60267.0,60266.0,0.082943]
[1724935014781,0.00024874,60273.0,60272.0,0.082936]
[1724935018299,0.00024874,60273.0,60272.0,0.107019]
[1724935018689,0.00024874,60273.0,60272.0,0.467819]
[1724935018890,0.00024874,60273.0,60272.0,0.550755]
[1724935019396,0.00024874,60273.0,60272.0,0.467819]
[1724935019596,0.00024874,60273.0,60272.0,0.107019]
[1724935020097,7.4e-07,60273.0,60272.0,1.565539]
[1724935020302,0.118,60296.0,60295.0,0.082904]
[1724935020804,0.3608,60301.0,60298.0,0.082899]
[1724935021100,0.3608,60301.0,60294.0,0.082906]
[1724935021300,0.2266,60303.0,60292.0,0.15984]
[1724935021301,0.3608,60296.0,60292.0,0.082907]
[1724935021487,0.2266,60303.0,60291.0,0.36104874]
[1724935021488,0.3608,60302.0,60291.0,0.36104874]
[1724935021693,0.00024874,60304.0,60303.0,0.082893]
[1724935022508,0.00024874,60304.0,60297.0,0.3608]
[1724935022694,0.3608,60303.0,60291.0,0.36104874]
[1724935022895,0.3608,60303.0,60292.0,0.15984]
[1724935023199,0.3608,60303.0,60297.0,0.3608]
[1724935023401,0.3608,60303.0,60302.0,0.082895]
[1724935023698,0.00024874,60304.0,60303.0,0.082893]
[1724935024289,0.118,60311.0,60310.0,0.082884]
[1724935024496,0.36184001,60322.0,60310.0,0.3608]
[1724935024695,0.3608,60322.0,60310.0,0.3608]
[1724935025107,0.08287,60320.0,60310.0,0.3608]
[1724935025296,0.3608,60316.0,60310.0,0.3608]
[1724935025502,0.3608,60316.0,60307.0,0.00024874]
[1724935025503,0.082888,60308.0,60307.0,0.00024874]
[1724935026688,0.580328,60308.0,60307.0,0.00024874]
[1724935026897,1.180328,60308.0,60307.0,0.00024874]
[1724935027102,0.082892,60304.0,60297.0,0.3608]
[1724935027301,0.1181,60303.0,60297.0,0.3608]
[1724935027601,0.1181,60303.0,60302.0,0.082895]
[1724935027806,0.1181,60303.0,60302.0,0.443695]
[1724935029491,0.1181,60303.0,60297.0,0.38487408]
[1724935029697,0.1181,60303.0,60299.0,0.082898]
[1724935030500,0.1181,60303.0,60302.0,0.082895]
[1724935033309,0.02396178,60308.0,60307.0,0.082888]
[1724935033614,0.00024874,60309.0,60308.0,0.082887]
[1724935034807,0.00024874,60309.0,60302.0,0.3608]
[1724935035114,0.00024874,60309.0,60305.0,0.36]
[1724935035315,0.00024874,60309.0,60308.0,0.082887]
[1724935038408,0.00024874,60309.0,60305.0,0.36]
[1724935038409,0.082888,60307.0,60305.0,0.36]
[1724935038609,0.36104874,60309.0,60308.0,0.082887]
[1724935038904,0.36104874,60309.0,60296.0,0.00024874]
[1724935038905,0.082894,60303.0,60296.0,0.00024874]
[1724935039106,0.2626488,60302.0,60301.0,0.082896]
[1724935040010,0.082899,60300.0,60299.0,0.082898]
[1724935041409,0.1797538,60302.0,60301.0,0.082896]
[1724935041606,0.1203,60302.0,60301.0,0.082896]
[1724935042013,0.0829,60299.0,60298.0,0.0829]
[1724935042615,0.082903,60296.0,60289.0,0.082912]
[1724935042820,0.082918,60286.0,60278.0,0.36]
[1724935043112,0.082922,60283.0,60282.0,0.082921]
[1724935043318,0.1202,60285.0,60284.0,0.08292]
[1724935043811,0.3608,60287.0,60286.0,0.082917]
[1724935044018,0.00024874,60291.0,60290.0,0.082911]
[1724935044902,0.00024874,60291.0,60290.0,0.165822]
[1724935045105,0.00024874,60291.0,60290.0,0.443711]
[1724935048801,0.1195,60303.0,60301.0,0.082896]
[1724935049217,0.4803,60303.0,60301.0,0.082896]
[1724935049417,0.05947814,60302.0,60301.0,0.082896]
[1724935050419,0.082896,60301.0,60299.0,0.082899]
[1724935050617,0.05947814,60300.0,60299.0,0.082899]
[1724935051613,0.05947814,60300.0,60299.0,0.442899]
[1724935051820,0.05947814,60300.0,60299.0,0.525798]
[1724935052019,0.05947814,60300.0,60299.0,0.442899]
[1724935053515,0.05947814,60300.0,60299.0,0.46713076]
[1724935054718,0.05947814,60300.0,60299.0,0.55002976]
[1724935056119,0.05947814,60300.0,60299.0,0.46713076]
[1724935057320,0.00024874,60308.0,60306.0,0.082889]
[1724935058321,0.082889,60307.0,60303.0,0.082893]
[1724935058721,0.08313574,60308.0,60305.0,0.082889]
[1724935059216,0.082891,60305.0,60301.0,0.00024874]
[1724935059426,0.082892,60304.0,60303.0,0.082893]
[1724935059826,0.00024874,60308.0,60306.0,0.082889]
[1724935060016,0.082888,60307.0,60306.0,0.082889]
[1724935060216,0.00024874,60308.0,60307.0,0.082888]
[1724935063829,0.08313574,60308.0,60307.0,0.082888]
[1724935064328,0.21067235,60308.0,60307.0,0.082888]
[1724935067424,0.21067235,60308.0,60304.0,0.082892]
[1724935067626,0.082895,60305.0,60304.0,0.082892]
[1724935067831,0.12753661,60305.0,60304.0,0.082892]
[1724935069032,0.05947814,60305.0,60304.0,0.082892]
[1724935069423,0.05947814,60305.0,60304.0,0.526584]
[1724935071420,0.05947814,60305.0,60304.0,0.443692]
[1724935072127,0.05947814,60305.0,60304.0,0.526584]
[1724935072533,0.00024874,60308.0,60307.0,0.165776]
[1724935072725,0.3257,60319.0,60318.0,0.082873]
[1724935072923,0.082868,60322.0,60319.0,0.082871]
[1724935073734,0.082868,60322.0,60320.0,0.08287]
[1724935075027,0.082868,60322.0,60321.0,0.082869]
[1724935075531,0.3845498,60322.0,60314.0,0.00024874]
[1724935075827,0.443677,60315.0,60314.0,0.00024874]
[1724935076035,0.3608,60315.0,60314.0,0.08312674]
[1724935078139,0.4674178,60322.0,60314.0,0.36104874]
[1724935078536,0.4674178,60322.0,60320.0,0.082869]
[1724935078833,0.4674178,60322.0,60321.0,0.082869]
[1724935079843,0.05947814,60322.0,60321.0,0.082869]
[1724935080336,0.209865,60324.0,60323.0,0.082866]
[1724935080635,0.08287,60321.0,60320.0,0.08287]
[1724935080841,0.08287,60321.0,60314.0,0.00024874]
[1724935080842,0.082874,60318.0,60317.0,0.082873]
[1724935081039,0.082877,60315.0,60314.0,0.08312574]
[1724935081242,0.082877,60315.0,60314.0,0.00024874]
[1724935081243,0.165754,60315.0,60314.0,0.00024874]
[1724935081541,0.082877,60315.0,60314.0,0.00024874]
[1724935081728,0.214977,60315.0,60314.0,0.00024874]
[1724935082240,0.712377,60315.0,60314.0,0.00024874]
[1724935082744,0.73642697,60315.0,60314.0,0.00024874]
[1724935082940,0.73642697,60315.0,60314.0,0.08312674]
[1724935083338,1.33642697,60315.0,60314.0,0.00024874]
[1724935084443,1.33642697,60315.0,60314.0,0.08312674]
[1724935084639,0.23902697,60315.0,60314.0,0.08312674]
[1724935085345,0.10692697,60315.0,60314.0,0.08312674]
[1724935085742,0.02404997,60315.0,60314.0,0.44312674]
[1724935085938,0.1338,60326.0,60314.0,0.44312674]
[1724935085939,0.3608,60328.0,60314.0,0.36024874]
[1724935086140,0.443672,60319.0,60318.0,0.082873]
[1724935086342,0.3608,60319.0,60318.0,0.082873]
[1724935086847,0.00024874,60327.0,60326.0,0.082862]
[1724935087043,0.02419697,60327.0,60326.0,0.082862]
[1724935087240,0.00024874,60327.0,60326.0,0.082862]
[1724935088442,0.05969255,60327.0,60326.0,0.165724]
[1724935088852,0.05969255,60327.0,60326.0,0.295924]
[1724935089054,0.035734,60327.0,60326.0,0.793204]
[1724935089258,0.3608,60352.0,60347.0,0.082832]
[1724935089555,0.443617,60359.0,60349.0,0.80363]
[1724935089747,0.3608,60359.0,60349.0,0.44363]
[1724935090148,0.00024874,60356.0,60349.0,0.44363]
[1724935090745,0.00024874,60356.0,60349.0,0.3608]
[1724935090746,0.082823,60355.0,60349.0,0.3608]
[1724935091253,0.082829,60351.0,60344.0,0.3608]
[1724935091458,0.082829,60351.0,60343.0,0.00024874]
[1724935091764,0.3608,60353.0,60343.0,0.02375738]
[1724935091951,0.3608,60353.0,60343.0,0.00024874]
[1724935092454,0.443632,60348.0,60343.0,0.00024874]
[1724935093055,0.082836,60345.0,60343.0,0.00024874]
[1724935093457,0.11028617,60344.0,60343.0,0.00024874]
[1724935093649,0.11028617,60344.0,60343.0,0.082838]
[1724935093850,0.11028617,60344.0,60338.0,0.082845]
[1724935094048,0.3608,60342.0,60335.0,0.35569113]
[1724935094254,0.2139132,60336.0,60335.0,0.35569113]
[1724935094455,0.2139132,60336.0,60335.0,0.02437294]
[1724935094456,0.68499937,60336.0,60335.0,0.02437294]
[1724935094658,0.41165846,60336.0,60334.0,0.08285]
[1724935094855,0.05085846,60335.0,60334.0,0.08285]
[1724935097262,0.05086635,60335.0,60334.0,0.08285]
[1724935099257,0.05086635,60335.0,60334.0,0.80365]
[1724935099457,3.5e-07,60335.0,60334.0,0.886501]
[1724935100369,0.00024874,60342.0,60341.0,0.165682]
[1724935100661,0.00024874,60342.0,60341.0,0.954641]
[1724935100858,0.00024874,60342.0,60341.0,2.051801]
[1724935101064,0.00024874,60342.0,60341.0,1.451801]
[1724935101968,0.00024874,60342.0,60341.0,0.954641]
[1724935102264,0.00024874,60342.0,60341.0,0.803641]
[1724935102762,0.00024874,60342.0,60341.0,0.82776033]
[1724935102964,0.00024874,60342.0,60341.0,1.92492033]
[1724935103164,0.00024874,60342.0,60341.0,2.00776133]
[1724935103362,0.00024874,60342.0,60341.0,1.40776133]
[1724935103769,0.00024874,60342.0,60341.0,0.82776033]
[1724935104656,0.23,60350.0,60348.0,0.08283]
[1724935104971,0.23,60350.0,60349.0,1.06253]
[1724935106165,0.23,60350.0,60349.0,1.64248]
[1724935106471,0.00024874,60356.0,60355.0,0.165644]
[1724935106767,0.00024874,60356.0,60355.0,1.023484]
[1724935107069,0.00024874,60356.0,60355.0,0.594582]
[1724935108170,0.00024874,60356.0,60355.0,0.443622]
[1724935108473,0.00024874,60356.0,60355.0,0.594582]
[1724935108670,0.00024874,60356.0,60355.0,0.443622]
[1724935108869,0.00024874,60356.0,60355.0,0.46776379]
[1724935109669,0.17851683,60356.0,60355.0,0.46776379]
[1724935111768,0.17851683,60356.0,60355.0,0.42098742]
[1724935112067,0.53931683,60356.0,60351.0,0.023501]
[1724935112266,0.082824,60354.0,60349.0,0.3608]
[1724935112469,0.11027113,60353.0,60352.0,0.082826]
[1724935112770,0.05942771,60353.0,60352.0,0.082826]
[1724935113670,1.22450467,60353.0,60343.0,0.00024874]
[1724935113869,0.082837,60344.0,60343.0,0.00024874]
[1724935114172,0.12742467,60344.0,60343.0,0.08308674]
[1724935114572,0.26512467,60344.0,60343.0,0.08308674]
[1724935114766,1.44512167,60344.0,60343.0,0.00024874]
[1724935115077,0.082841,60341.0,60331.0,0.36]
[1724935115273,0.12742467,60340.0,60331.0,0.36]
[1724935115462,0.05942771,60339.0,60338.0,0.082845]
[1724935115775,0.48822467,60339.0,60338.0,0.082845]
[1724935116474,0.57106867,60339.0,60338.0,0.082845]
[1724935116676,0.082847,60337.0,60332.0,0.00024853]
[1724935116867,0.38597194,60339.0,60337.0,0.082846]
[1724935117068,0.38513194,60339.0,60338.0,0.082845]
[1724935117271,0.3608,60339.0,60338.0,0.082845]
[1724935119075,0.443644,60339.0,60338.0,0.082845]
[1724935119264,0.082847,60337.0,60334.0,0.08285]
[1724935119466,0.082847,60337.0,60336.0,0.082848]
[1724935120663,0.082851,60334.0,60332.0,0.08310153]
[1724935120872,0.13854,60344.0,60333.0,0.3608]
[1724935121170,0.05942734,60351.0,60343.0,0.7208]
[1724935121372,0.3608,60365.0,60361.0,0.082814]
[1724935121373,0.05942734,60362.0,60361.0,0.082814]
[1724935121565,0.05941273,60362.0,60361.0,0.082814]
[1724935121763,0.3608,60365.0,60358.0,0.7208]
[1724935121764,0.05941273,60364.0,60363.0,0.082811]
[1724935122269,0.08366489,60364.0,60363.0,0.082811]
[1724935122570,0.02425216,60364.0,60363.0,0.082811]
[1724935122871,0.3608,60365.0,60364.0,0.08281]
[1724935124770,0.48820969,60365.0,60364.0,0.07452901]
[1724935125081,0.12740969,60365.0,60364.0,0.07452901]
[1724935126969,0.62440969,60365.0,60364.0,0.08281]
[1724935127174,0.75760969,60365.0,60364.0,0.08281]
[1724935127480,0.12740969,60365.0,60364.0,0.08281]
[1724935129474,0.12740969,60365.0,60360.0,0.082815]
[1724935129676,0.443612,60363.0,60362.0,0.082812]
[1724935129873,0.12740969,60363.0,60362.0,0.07453051]
[1724935130876,0.39130704,60363.0,60362.0,0.07453051]
[1724935131384,0.75210704,60363.0,60362.0,0.07453051]
[1724935131583,0.06799696,60363.0,60362.0,1.01514251]
[1724935131771,0.58973208,60384.0,60369.0,0.165606]
[1724935131975,0.03048218,60382.0,60369.0,0.608409]
[1724935132175,0.58973208,60384.0,60369.0,0.608409]
[1724935132579,0.3608,60384.0,60369.0,0.608409]
[1724935132887,0.2753,60438.0,60369.0,0.608409]
[1724935132888,0.448056,60403.0,60380.0,0.082787]
[1724935133080,0.1421,60402.0,60398.0,0.36]
[1724935133381,0.1421,60402.0,60401.0,0.082759]
[1724935133577,0.1421,60402.0,60398.0,0.36]
[1724935134179,0.1421,60402.0,60394.0,0.00024853]
[1724935134387,0.3608,60398.0,60394.0,0.00024853]
[1724935134685,0.443564,60398.0,60394.0,0.00024853]
[1724935134888,0.082765,60397.0,60394.0,0.00024853]
[1724935135382,0.082765,60397.0,60385.0,0.15092]
[1724935135383,0.85752,60396.0,60382.0,0.082785]
[1724935135573,0.85752,60396.0,60380.0,0.082787]
[1724935135574,0.3608,60384.0,60380.0,0.082787]
[1724935135777,0.3608,60384.0,60381.0,0.082786]
[1724935135974,0.3608,60384.0,60377.0,0.36]
[1724935136288,0.3608,60379.0,60377.0,0.36]
[1724935136491,0.3608,60379.0,60377.0,0.3900155]
[1724935136677,0.44359,60379.0,60377.0,0.3900155]
[1724935137278,0.3608,60379.0,60372.0,0.00024853]
[1724935137488,0.3608,60373.0,60372.0,0.00024853]
[1724935137879,0.44359,60379.0,60372.0,0.00024853]
[1724935138079,0.00024853,60384.0,60372.0,0.00024853]
[1724935138080,0.00024853,60384.0,60383.0,0.082784]
[1724935138486,0.00024853,60384.0,60383.0,0.165568]
[1724935138686,0.00024853,60384.0,60383.0,0.082784]
[1724935139391,0.3608,60391.0,60390.0,0.082774]
[1724935139597,0.3608,60391.0,60390.0,0.442774]
[1724935139896,0.42019679,60391.0,60390.0,0.442774]
[1724935140085,0.42019679,60391.0,60384.0,0.36]
[1724935140287,0.05939679,60390.0,60384.0,0.36]
[1724935140488,0.12734844,60389.0,60387.0,0.082778]
[1724935140783,0.12734844,60388.0,60387.0,0.07450021]
[1724935140992,0.05939679,60388.0,60383.0,0.03134357]
[1724935141287,0.082782,60384.0,60383.0,0.03134357]
[1724935141592,0.082782,60384.0,60381.0,0.00024853]
[1724935141593,0.14117879,60384.0,60381.0,0.00024853]
[1724935141804,0.082785,60382.0,60381.0,0.00024853]
[1724935141990,0.20913344,60382.0,60381.0,0.00024853]
[1724935142296,1.73078844,60382.0,60373.0,0.082796]
[1724935142588,0.082788,60380.0,60373.0,0.082796]
[1724935142787,0.12734844,60379.0,60370.0,0.36]
[1724935142987,0.12734844,60378.0,60370.0,0.36]
[1724935143193,0.12734844,60377.0,60376.0,0.082793]
[1724935143382,0.48814844,60377.0,60372.0,0.082798]
[1724935143582,0.12734844,60376.0,60372.0,0.082798]
[1724935143783,0.05939679,60375.0,60370.0,0.38950552]
[1724935143988,0.05939679,60374.0,60370.0,0.47230652]
[1724935144192,0.05939679,60373.0,60370.0,0.47230652]
[1724935144398,0.05939679,60372.0,60371.0,0.082799]
[1724935144698,0.42019679,60372.0,60368.0,0.00024853]
[1724935144909,0.05939679,60371.0,60368.0,0.00024853]
[1724935145092,0.05939679,60370.0,60369.0,0.082803]
[1724935145992,0.05939679,60370.0,60369.0,0.442803]
[1724935146191,0.05939679,60370.0,60369.0,0.525606]
[1724935146500,0.0426437,60370.0,60369.0,2.066129]
[1724935146686,0.003,60372.0,60371.0,0.1656]
[1724935146884,0.002,60372.0,60371.0,0.2484]
[1724935147089,0.6865,60388.0,60379.0,0.165578]
[1724935147294,0.6865,60388.0,60379.0,0.803589]
[1724935148093,0.3257,60388.0,60379.0,0.803589]
[1724935148899,0.408477,60388.0,60379.0,0.803589]
[1724935149401,0.00224853,60380.0,60376.0,0.082792]
[1724935149902,0.00224853,60380.0,60372.0,0.36]
[1724935150292,0.00224853,60380.0,60379.0,0.36]
[1724935150488,0.00224853,60380.0,60379.0,0.442789]
[1724935151096,0.00024853,60380.0,60379.0,0.442789]
[1724935151294,0.00224853,60380.0,60379.0,0.442789]
[1724935151696,0.00224853,60380.0,60379.0,0.36]
[1724935151901,0.08503653,60380.0,60378.0,0.08279]
[1724935152098,0.08503653,60380.0,60373.0,0.36]
[1724935153205,0.00224853,60380.0,60379.0,0.082789]
[1724935154299,0.00024853,60380.0,60379.0,0.082789]
[1724935154899,0.12958451,60380.0,60379.0,0.083789]
[1724935155498,0.21237251,60380.0,60379.0,0.001]
[1724935155711,1.30921251,60380.0,60373.0,0.36]
[1724935155908,0.443596,60375.0,60374.0,0.082795]
[1724935156107,0.57093198,60375.0,60374.0,0.082795]
[1724935156406,0.57093198,60375.0,60361.0,0.15088]
[1724935156407,0.082803,60369.0,60358.0,0.36]
[1724935156602,0.082822,60356.0,60355.0,0.082822]
[1724935156808,0.14220918,60356.0,60355.0,0.082822]
[1724935157001,0.05938718,60356.0,60355.0,0.082822]
[1724935157306,0.05838718,60356.0,60355.0,0.082822]
[1724935158102,0.06138718,60356.0,60355.0,0.082822]
[1724935158315,0.06138718,60356.0,60355.0,0.084822]
[1724935158316,0.12933598,60356.0,60355.0,0.084822]
[1724935159109,0.12933598,60356.0,60355.0,0.083822]
[1724935159511,0.49013598,60356.0,60355.0,0.083822]
[1724935160802,0.57295698,60356.0,60355.0,0.001]
[1724935161612,0.49013598,60356.0,60355.0,0.083822]
[1724935161813,0.3638,60356.0,60355.0,0.083822]
[1724935162110,0.446621,60356.0,60355.0,0.083822]
[1724935162415,0.003,60356.0,60355.0,0.083822]
[1724935163199,0.085821,60356.0,60355.0,0.083822]
[1724935163404,0.446621,60356.0,60355.0,0.083822]
[1724935164613,0.446621,60356.0,60355.0,0.001]
[1724935164614,0.529442,60356.0,60355.0,0.001]
[1724935164811,0.446621,60356.0,60355.0,0.001]
[1724935165201,0.446621,60356.0,60355.0,0.083822]
[1724935167107,0.446621,60356.0,60355.0,0.001]
[1724935167313,0.529442,60356.0,60355.0,0.001]
[1724935168110,1.026482,60356.0,60355.0,0.001]
[1724935168917,0.529442,60356.0,60355.0,0.001]
[1724935169308,0.529442,60356.0,60355.0,0.083822]
[1724935171216,1.026482,60356.0,60355.0,0.001]
[1724935171417,0.446621,60356.0,60355.0,0.001]
[1724935172317,0.446621,60356.0,60355.0,0.083822]
[1724935172513,0.3638,60356.0,60355.0,0.083822]
[1724935173622,0.00024853,60362.0,60361.0,0.248442]
[1724935173812,0.1343,60379.0,60378.0,0.08279]
[1724935174621,0.082769,60394.0,60386.0,0.082779]
[1724935174936,0.00024853,60393.0,60388.0,0.082776]
[1724935175314,0.00024853,60393.0,60392.0,0.442771]
[1724935176432,0.00024853,60393.0,60386.0,0.3608]
[1724935176620,0.00024853,60393.0,60385.0,0.08278]
[1724935176621,0.3608,60388.0,60385.0,0.08278]
[1724935176928,0.3608,60388.0,60380.0,0.00024853]
[1724935176929,0.082785,60382.0,60380.0,0.00024853]
[1724935177115,0.05941931,60381.0,60380.0,0.08303653]
[1724935177617,0.05841931,60381.0,60380.0,0.08303653]
[1724935177817,0.05741931,60381.0,60380.0,0.08303653]
[1724935178419,0.05741931,60381.0,60380.0,0.08403653]
[1724935178616,0.06141931,60381.0,60380.0,0.08403653]
[1724935178820,0.06141931,60381.0,60380.0,0.00124853]
[1724935179120,0.06141931,60381.0,60380.0,0.08403653]
[1724935179521,0.06141931,60381.0,60380.0,1.18087653]
[1724935179928,0.06141931,60381.0,60380.0,1.32197653]
[1724935180626,0.06441931,60381.0,60380.0,1.32197653]
[1724935181024,0.06441931,60381.0,60380.0,0.22513653]
[1724935181526,0.06541931,60381.0,60380.0,0.22513653]
[1724935181726,0.06341931,60381.0,60380.0,0.22413653]
[1724935181916,0.06541931,60381.0,60380.0,0.22513653]
[1724935182738,0.06541931,60381.0,60380.0,0.08403653]
[1724935183530,0.090786,60381.0,60380.0,0.00124853]
[1724935183922,0.14820531,60381.0,60380.0,0.00124853]
[1724935185030,0.090786,60381.0,60380.0,0.00124853]
[1724935186730,1.187626,60381.0,60365.0,0.3608]
[1724935186931,1.187626,60381.0,60369.0,0.082803]
[1724935186932,0.082802,60370.0,60369.0,0.082803]
[1724935188037,0.082806,60367.0,60363.0,0.00024853]
[1724935188223,0.082806,60367.0,60366.0,0.082807]
[1724935188427,0.082807,60366.0,60365.0,0.011]
[1724935188629,0.576807,60366.0,60365.0,0.018]
[1724935189031,0.576807,60366.0,60365.0,0.100808]
[1724935189235,0.576807,60366.0,60365.0,0.089808]
[1724935189432,0.216007,60366.0,60365.0,0.089808]
[1724935189635,0.1332,60366.0,60365.0,0.089808]
[1724935190233,0.216007,60366.0,60365.0,0.082808]
[1724935191046,0.005,60366.0,60365.0,0.444608]
[1724935191231,0.009,60366.0,60365.0,0.445608]
[1724935191841,0.082803,60369.0,60368.0,0.082804]
[1724935193237,0.3608,60372.0,60365.0,0.3618]
[1724935193238,0.3608,60372.0,60371.0,0.0828]
[1724935193543,0.00024853,60376.0,60375.0,0.082795]
[1724935194344,0.36104853,60376.0,60375.0,0.082795]
[1724935194540,0.44384153,60376.0,60375.0,0.082795]
[1724935194746,0.44684153,60376.0,60375.0,0.083795]
[1724935194952,0.44684153,60376.0,60365.0,0.3608]
[1724935194953,0.082795,60375.0,60365.0,0.3608]
[1724935195242,0.081807,60368.0,60367.0,0.082805]
[1724935196030,0.36904853,60376.0,60375.0,0.082795]
[1724935196435,0.00824853,60376.0,60375.0,0.16559]
[1724935196837,0.00824853,60376.0,60375.0,0.082795]
[1724935197045,0.00524853,60376.0,60375.0,0.082795]
[1724935197240,0.00024853,60376.0,60375.0,0.082795]
[1724935198044,0.01024853,60376.0,60375.0,0.084795]
[1724935200149,0.06766784,60376.0,60375.0,0.084795]
[1724935200947,0.06766784,60376.0,60375.0,0.002]
[1724935200948,1.69093384,60376.0,60375.0,0.002]
[1724935201240,0.06766784,60376.0,60364.0,0.02928334]
[1724935201447,0.14021431,60375.0,60365.0,0.3608]
[1724935201650,0.14021431,60375.0,60358.0,0.1313]
[1724935201651,0.05741931,60374.0,60373.0,0.082797]
[1724935203039,0.0828,60372.0,60370.0,0.082801]
[1724935203245,0.41821931,60371.0,60370.0,0.082801]
[1724935203552,0.41821931,60371.0,60364.0,0.36]
[1724935203753,0.41821931,60371.0,60359.0,0.51116]
[1724935203754,0.082806,60367.0,60359.0,0.36184]
[1724935203937,0.14022531,60367.0,60359.0,0.3608]
[1724935204141,0.14022531,60367.0,60364.0,0.082809]
[1724935204142,0.082808,60366.0,60364.0,0.082809]
[1724935204444,0.05741931,60365.0,60364.0,0.082809]
[1724935204946,0.05641931,60365.0,60364.0,0.082809]
[1724935205848,0.08281,60364.0,60363.0,0.00024853]
[1724935206043,0.003,60365.0,60363.0,0.00024853]
[1724935206445,0.003,60365.0,60364.0,0.08281]
[1724935206650,0.003,60365.0,60364.0,0.08381]
[1724935207250,0.008,60365.0,60364.0,0.08281]
[1724935207444,0.00475147,60365.0,60364.0,0.96923]
[1724935207644,0.00475147,60365.0,60364.0,1.11023]
[1724935207951,0.009,60365.0,60364.0,1.11023]
[1724935208549,0.3608,60383.0,60375.0,0.082795]
[1724935209345,0.1321,60385.0,60375.0,0.082795]
[1724935210545,0.1321,60385.0,60375.0,0.083795]
[1724935210745,0.3608,60382.0,60375.0,0.083795]
[1724935211251,0.3608,60382.0,60375.0,1.345265]
[1724935211445,0.0039,60402.0,60375.0,1.345265]
[1724935211446,0.05939985,60397.0,60396.0,0.082766]
[1724935211647,0.1362,60400.0,60391.0,0.7208]
[1724935211648,0.00084,60398.0,60391.0,0.7208]
[1724935211842,0.3608,60397.0,60391.0,0.36]
[1724935212050,0.3608,60397.0,60384.0,0.3608]
[1724935212248,0.3608,60397.0,60382.0,0.1416]
[1724935212249,0.3608,60392.0,60382.0,0.02996857]
[1724935212460,0.3608,60392.0,60380.0,0.14932]
[1724935212461,0.3608,60387.0,60381.0,0.00024853]
[1724935213054,0.3608,60387.0,60382.0,0.082785]
[1724935213445,0.3608,60387.0,60384.0,0.082782]
[1724935214855,0.3608,60387.0,60384.0,0.083782]
[1724935215057,0.1273733,60386.0,60384.0,0.084782]
[1724935215244,0.1273733,60385.0,60384.0,0.084782]
[1724935215750,0.05939985,60385.0,60384.0,0.084782]
[1724935215957,0.1273733,60385.0,60384.0,0.084782]
[1724935216151,0.05939985,60385.0,60384.0,0.084782]
[1724935216347,0.1273733,60385.0,60384.0,0.084782]
[1724935216544,0.63898085,60385.0,60384.0,0.002]
[1724935216743,1.32176185,60385.0,60384.0,0.001]
[1724935216950,0.19809985,60385.0,60373.0,0.082797]
[1724935217156,0.082793,60377.0,60373.0,0.082797]
[1724935217357,0.05939985,60376.0,60371.0,0.36]
[1724935217660,0.05839985,60375.0,60374.0,0.082796]
[1724935218462,0.00024853,60381.0,60380.0,0.082788]
[1724935218750,0.6865,60402.0,60380.0,0.3608]
[1724935218958,0.6865,60402.0,60374.0,0.683756]
[1724935218959,0.00084,60396.0,60395.0,0.082767]
[1724935219254,0.3608,60402.0,60401.0,0.082759]
[1724935220750,0.42017506,60402.0,60401.0,0.082759]
[1724935221155,0.42717506,60402.0,60401.0,0.083759]
[1724935221656,0.49514851,60402.0,60401.0,0.084759]
[1724935221851,0.42717506,60402.0,60401.0,0.084759]
[1724935223155,0.50993306,60402.0,60401.0,0.002]
[1724935223655,0.50993306,60402.0,60395.0,0.00024853]
[1724935223656,0.50993306,60402.0,60397.0,0.082763]
[1724935223951,0.082762,60399.0,60395.0,0.00024853]
[1724935224160,0.3608,60396.0,60395.0,0.08301553]
[1724935224354,0.42017506,60396.0,60395.0,0.08301553]
[1724935224746,0.42017506,60396.0,60395.0,0.57973553]
[1724935224962,0.05937506,60401.0,60400.0,0.08276]
[1724935225552,0.006,60402.0,60401.0,0.082759]
[1724935225958,0.06537506,60402.0,60401.0,0.082759]
[1724935226151,0.06537506,60402.0,60401.0,0.165518]
[1724935226346,0.006,60402.0,60401.0,0.662198]
[1724935227263,0.05937506,60404.0,60401.0,0.662198]
[1724935227264,0.05937506,60407.0,60406.0,0.082752]
[1724935227558,0.42017506,60407.0,60406.0,0.082752]
[1724935228964,0.42517506,60407.0,60406.0,0.083752]
[1724935229451,0.42517506,60407.0,60406.0,0.443752]
[1724935229452,0.005,60407.0,60406.0,0.443752]
[1724935229961,0.005,60407.0,60406.0,0.526504]
[1724935230159,0.005,60407.0,60406.0,0.527504]
[1724935230160,0.13234851,60407.0,60406.0,0.527504]
[1724935231260,0.13234851,60407.0,60406.0,0.444752]
[1724935232061,0.13234851,60407.0,60406.0,0.457504]
[1724935232263,0.06437506,60407.0,60406.0,0.457504]
[1724935232456,0.13234851,60407.0,60406.0,0.457504]
[1724935232664,0.13234851,60407.0,60406.0,0.374752]
[1724935233955,0.49314851,60407.0,60406.0,0.374752]
[1724935234565,0.49314851,60407.0,60406.0,0.33727681]
[1724935236962,0.57589951,60407.0,60406.0,0.002]
[1724935237159,0.584451,60407.0,60406.0,0.084752]
[1724935237967,0.5017,60407.0,60406.0,0.084752]
[1724935238159,0.1409,60407.0,60406.0,0.084752]
[1724935238560,0.1409,60407.0,60406.0,0.374752]
[1724935240365,0.005,60407.0,60406.0,0.374752]
[1724935240562,0.005,60407.0,60406.0,0.457504]
[1724935241167,0.005,60407.0,60406.0,0.374752]
[1724935243172,0.087751,60407.0,60406.0,0.292]
[1724935243369,0.087751,60407.0,60406.0,0.374752]
[1724935244067,0.087751,60407.0,60406.0,0.002]
[1724935244371,0.722591,60407.0,60406.0,0.002]